[Event "*** Titled Tuesday Blitz"]
[Site "Chess.com"]
[Date "2018.07.03"]
[Round "3"]
[White "VovenRogel"]
[Black "platy3"]
[Result "0-1"]
[WhiteElo "2694"]
[BlackElo "2738"]
[TimeControl "180+2"]
[EndTime "13:35:48 PDT"]
[Termination "platy3 won by resignation"]

1. c4 {[%clk 0:03:01.9]} 1... Nf6 {[%clk 0:03:00.2]} 2. Nc3 {[%clk 0:03:01.4]}
2... g6 {[%clk 0:03:01.4]} 3. d4 {[%clk 0:02:57.3]} 3... Bg7 {[%clk 0:03:02.1]}
4. Nf3 {[%clk 0:02:54.8]} 4... O-O {[%clk 0:03:02.9]} 5. g3 {[%clk 0:02:56.7]}
5... d6 {[%clk 0:03:03.4]} 6. Bg2 {[%clk 0:02:55.8]} 6... Nc6 {[%clk 0:03:04.8]}
7. O-O {[%clk 0:02:57.5]} 7... e5 {[%clk 0:03:06]} 8. dxe5 {[%clk 0:02:57.7]}
8... dxe5 {[%clk 0:03:07.3]} 9. Qxd8 {[%clk 0:02:50.9]} 9... Rxd8 {[%clk
0:03:07.5]} 10. Bg5 {[%clk 0:02:51.2]} 10... Be6 {[%clk 0:03:08.5]} 11. Nd2
{[%clk 0:02:42.2]} 11... h6 {[%clk 0:03:09.4]} 12. Bxf6 {[%clk 0:02:40.1]} 12...
Rxd2 {[%clk 0:03:10.7]} 13. Bxg7 {[%clk 0:02:41.6]} 13... Kxg7 {[%clk
0:03:12.1]} 14. Bxc6 {[%clk 0:02:42.8]} 14... bxc6 {[%clk 0:03:13.5]} 15. b3
{[%clk 0:02:44.7]} 15... f5 {[%clk 0:03:14.9]} 16. Rfd1 {[%clk 0:02:39.9]} 16...
Rad8 {[%clk 0:03:16.1]} 17. Rxd2 {[%clk 0:02:40.9]} 17... Rxd2 {[%clk
0:03:17.4]} 18. Rc1 {[%clk 0:02:42.1]} 18... Kf6 {[%clk 0:03:13.1]} 19. Kf1
{[%clk 0:02:37.1]} 19... e4 {[%clk 0:03:11.3]} 20. Ke1 {[%clk 0:02:37]} 20...
Rd4 {[%clk 0:02:56.3]} 21. Rd1 {[%clk 0:02:33.6]} 21... Ke5 {[%clk 0:02:57.1]}
22. Na4 {[%clk 0:02:26.5]} 22... g5 {[%clk 0:02:53.6]} 23. Nc5 {[%clk
0:02:21.4]} 23... Bc8 {[%clk 0:02:46.1]} 24. e3 {[%clk 0:02:15.3]} 24... Rd6
{[%clk 0:02:27.5]} 25. Rd2 {[%clk 0:02:06.3]} 25... f4 {[%clk 0:02:25.4]} 26.
exf4+ {[%clk 0:02:03.7]} 26... gxf4 {[%clk 0:02:26.2]} 27. gxf4+ {[%clk
0:01:51.7]} 27... Kxf4 {[%clk 0:02:26.7]} 28. Na4 {[%clk 0:01:43]} 28... Rxd2
{[%clk 0:01:42]} 29. Kxd2 {[%clk 0:01:43.7]} 29... Kf3 {[%clk 0:01:43.6]} 30.
Ke1 {[%clk 0:01:45]} 30... Kg2 {[%clk 0:01:43.6]} 31. Nc5 {[%clk 0:01:38.6]}
31... Bf5 {[%clk 0:01:42.3]} 32. h4 {[%clk 0:01:37.8]} 32... Kh3 {[%clk
0:01:40.1]} 33. h5 {[%clk 0:01:36.2]} 33... Kg4 {[%clk 0:01:38.7]} 34. Na6
{[%clk 0:01:31.6]} 34... Kxh5 {[%clk 0:01:38.7]} 35. Nb8 {[%clk 0:01:30.9]}
35... Kg4 {[%clk 0:01:35.5]} 36. Nxc6 {[%clk 0:01:31.9]} 36... h5 {[%clk
0:01:33.5]} 37. Nxa7 {[%clk 0:01:31.2]} 37... h4 {[%clk 0:01:34.7]} 38. Kf1
{[%clk 0:01:32.2]} 38... h3 {[%clk 0:01:26.7]} 39. Nb5 {[%clk 0:01:15.1]} 39...
e3 {[%clk 0:01:15.7]} 40. Nd4 {[%clk 0:00:37]} 40... Be4 {[%clk 0:01:07.6]} 0-1

[Event "*** Titled Tuesday Blitz"]
[Site "Chess.com"]
[Date "2018.07.03"]
[Round "3"]
[White "1b31-0"]
[Black "Hrant_ChessMood"]
[Result "0-1"]
[WhiteElo "2199"]
[BlackElo "2898"]
[TimeControl "180+2"]
[EndTime "13:36:02 PDT"]
[Termination "Hrant_ChessMood won by resignation"]

1. b3 {[%clk 0:03:01.9]} 1... d5 {[%clk 0:02:56.3]} 2. Bb2 {[%clk 0:02:53.8]}
2... Nf6 {[%clk 0:02:55.6]} 3. e3 {[%clk 0:02:54.7]} 3... Bg4 {[%clk 0:02:49.7]}
4. f3 {[%clk 0:02:51.1]} 4... Bf5 {[%clk 0:02:46.8]} 5. d4 {[%clk 0:02:45.1]}
5... e6 {[%clk 0:02:46.6]} 6. Bd3 {[%clk 0:02:44.1]} 6... Bxd3 {[%clk 0:02:36]}
7. Qxd3 {[%clk 0:02:42.4]} 7... c5 {[%clk 0:02:37.9]} 8. Nd2 {[%clk 0:02:36.8]}
8... Nc6 {[%clk 0:02:37.2]} 9. Qe2 {[%clk 0:02:11.9]} 9... Rc8 {[%clk
0:02:33.5]} 10. a3 {[%clk 0:01:59.4]} 10... cxd4 {[%clk 0:02:33.4]} 11. exd4
{[%clk 0:02:00.5]} 11... Bd6 {[%clk 0:02:32.1]} 12. Nh3 {[%clk 0:01:59]} 12...
O-O {[%clk 0:02:32.8]} 13. O-O {[%clk 0:01:52.2]} 13... Qb6 {[%clk 0:02:33.6]}
14. Qd3 {[%clk 0:01:48.6]} 14... Ne5 {[%clk 0:02:27.1]} 15. Qe2 {[%clk
0:01:31.7]} 15... Rxc2 {[%clk 0:02:18.7]} 16. Kh1 {[%clk 0:01:28.5]} 16... Nc6
{[%clk 0:02:11.9]} 17. Rab1 {[%clk 0:01:25.5]} 17... Nxd4 {[%clk 0:02:09.7]} 18.
Qd3 {[%clk 0:01:19.9]} 18... Rxb2 {[%clk 0:02:09.4]} 19. Rxb2 {[%clk 0:01:18.6]}
19... Bxa3 {[%clk 0:02:08.4]} 20. Ra2 {[%clk 0:01:18.4]} 20... Bb4 {[%clk
0:02:09.4]} 21. Rb1 {[%clk 0:00:55.5]} 21... Rc8 {[%clk 0:02:08.9]} 22. Nf1
{[%clk 0:00:34.7]} 22... Rc3 {[%clk 0:02:07.4]} 23. Qd1 {[%clk 0:00:35.2]} 23...
Qc5 {[%clk 0:02:04.7]} 24. Ng3 {[%clk 0:00:34.2]} 24... h6 {[%clk 0:02:03.4]}
25. Ng1 {[%clk 0:00:33.9]} 25... a5 {[%clk 0:01:56.9]} 26. N1e2 {[%clk
0:00:31.9]} 26... Nxe2 {[%clk 0:01:55.7]} 27. Nxe2 {[%clk 0:00:32.7]} 27... Re3
{[%clk 0:01:56.1]} 28. Rc2 {[%clk 0:00:32.2]} 28... Qb5 {[%clk 0:01:47.9]} 29.
Rc8+ {[%clk 0:00:31.1]} 29... Kh7 {[%clk 0:01:48.7]} 30. Qc2+ {[%clk 0:00:21.6]}
30... Qd3 {[%clk 0:01:48.1]} 31. Qxd3+ {[%clk 0:00:21.8]} 31... Rxd3 {[%clk
0:01:50]} 32. Rbc1 {[%clk 0:00:22.3]} 32... Rd2 {[%clk 0:01:46.9]} 33. Ng3
{[%clk 0:00:22]} 33... d4 {[%clk 0:01:40.3]} 34. R8c7 {[%clk 0:00:22.6]} 34...
Kg6 {[%clk 0:01:40.2]} 35. h4 {[%clk 0:00:22.4]} 35... d3 {[%clk 0:01:38.6]} 36.
h5+ {[%clk 0:00:23]} 36... Nxh5 {[%clk 0:01:36.9]} 37. Nxh5 {[%clk 0:00:23.9]}
37... Kxh5 {[%clk 0:01:38.8]} 38. Rxf7 {[%clk 0:00:24.7]} 38... Re2 {[%clk
0:01:21.1]} 39. Rd7 {[%clk 0:00:17.2]} 39... d2 {[%clk 0:01:21]} 40. Rg1 {[%clk
0:00:17.2]} 40... Re1 {[%clk 0:01:21.4]} 41. Kh2 {[%clk 0:00:17.7]} 41... b5
{[%clk 0:01:12.3]} 42. Rh1 {[%clk 0:00:18.9]} 42... a4 {[%clk 0:01:10.6]} 43.
bxa4 {[%clk 0:00:19.5]} 43... bxa4 {[%clk 0:01:12.5]} 44. g4+ {[%clk 0:00:20.4]}
44... Kg6 {[%clk 0:01:12.6]} 45. f4 {[%clk 0:00:20.9]} 45... a3 {[%clk
0:01:13.1]} 46. f5+ {[%clk 0:00:21]} 46... exf5 {[%clk 0:01:15]} 47. gxf5+
{[%clk 0:00:22.9]} 47... Kxf5 {[%clk 0:01:15.7]} 48. Rf7+ {[%clk 0:00:23.9]}
48... Ke6 {[%clk 0:01:15.7]} 49. Rxg7 {[%clk 0:00:25]} 0-1

[Event "*** Titled Tuesday Blitz"]
[Site "Chess.com"]
[Date "2018.07.03"]
[Round "3"]
[White "Karina_Oparina"]
[Black "destroyer305"]
[Result "1/2-1/2"]
[WhiteElo "2211"]
[BlackElo "2312"]
[TimeControl "180+2"]
[EndTime "13:36:03 PDT"]
[Termination "Game drawn by agreement"]

1. Nf3 {[%clk 0:03:00.4]} 1... c5 {[%clk 0:03:00.6]} 2. c4 {[%clk 0:02:59.2]}
2... g6 {[%clk 0:02:57.5]} 3. g3 {[%clk 0:02:57.6]} 3... Bg7 {[%clk 0:02:58.8]}
4. d4 {[%clk 0:02:58]} 4... Nc6 {[%clk 0:03:00.6]} 5. dxc5 {[%clk 0:02:54.7]}
5... Qa5+ {[%clk 0:02:59.9]} 6. Nbd2 {[%clk 0:02:53.5]} 6... Qxc5 {[%clk
0:02:59.7]} 7. Bg2 {[%clk 0:02:54.2]} 7... Nf6 {[%clk 0:02:59.9]} 8. O-O {[%clk
0:02:54.7]} 8... O-O {[%clk 0:03:01]} 9. b3 {[%clk 0:02:53.9]} 9... d5 {[%clk
0:02:45.8]} 10. Bb2 {[%clk 0:02:51.3]} 10... d4 {[%clk 0:02:40.3]} 11. a3 {[%clk
0:02:40.4]} 11... a5 {[%clk 0:02:36.4]} 12. Rc1 {[%clk 0:02:36.9]} 12... e5
{[%clk 0:02:36.2]} 13. Ne1 {[%clk 0:02:34.3]} 13... Rd8 {[%clk 0:02:34.2]} 14.
Nd3 {[%clk 0:02:35.6]} 14... Qe7 {[%clk 0:02:35]} 15. Ne4 {[%clk 0:02:34.6]}
15... Bf5 {[%clk 0:02:24.4]} 16. Nxf6+ {[%clk 0:02:24.6]} 16... Bxf6 {[%clk
0:02:26.3]} 17. f3 {[%clk 0:02:18.6]} 17... Bg5 {[%clk 0:02:24.5]} 18. f4 {[%clk
0:02:16.8]} 18... exf4 {[%clk 0:02:12.4]} 19. Nxf4 {[%clk 0:02:12.3]} 19... Bg4
{[%clk 0:01:59.5]} 20. Qd2 {[%clk 0:01:50.7]} 20... Bxf4 {[%clk 0:01:43.1]} 21.
Rxf4 {[%clk 0:01:50.2]} 21... Qxe2 {[%clk 0:01:42.5]} 22. Qxe2 {[%clk
0:01:50.4]} 22... Bxe2 {[%clk 0:01:43.7]} 23. Bxc6 {[%clk 0:01:50.7]} 23... bxc6
{[%clk 0:01:44.9]} 24. Rxd4 {[%clk 0:01:50.4]} 24... Rdb8 {[%clk 0:01:36.4]} 25.
Rc2 {[%clk 0:01:42.6]} 25... Bf3 {[%clk 0:01:33.6]} 26. Rc3 {[%clk 0:01:41.1]}
26... Be2 {[%clk 0:01:26.9]} 27. Re3 {[%clk 0:01:40.3]} 27... Re8 {[%clk
0:01:22.1]} 28. Kf2 {[%clk 0:01:34.7]} 28... Rxe3 {[%clk 0:01:11]} 29. Kxe3
{[%clk 0:01:35]} 29... Re8+ {[%clk 0:01:12.7]} 30. Re4 {[%clk 0:01:35.1]} 30...
Rxe4+ {[%clk 0:01:12.2]} 31. Kxe4 {[%clk 0:01:35.7]} 31... Kf8 {[%clk
0:01:02.7]} 32. Kd4 {[%clk 0:01:31.1]} 32... Bd1 {[%clk 0:01:03.8]} 33. b4
{[%clk 0:01:28.4]} 33... axb4 {[%clk 0:01:05.4]} 34. axb4 {[%clk 0:01:28.9]}
34... Ke7 {[%clk 0:01:07.1]} 35. b5 {[%clk 0:01:27.2]} 35... cxb5 {[%clk
0:01:07.1]} 36. cxb5 {[%clk 0:01:27.5]} 36... Kd6 {[%clk 0:01:07.6]} 37. Ba3+
{[%clk 0:01:26.8]} 37... Kc7 {[%clk 0:01:08]} 38. Kc5 {[%clk 0:01:24.2]} 38...
f5 {[%clk 0:01:05.1]} 39. Bc1 {[%clk 0:01:22.3]} 39... Be2 {[%clk 0:01:02.9]}
40. Bf4+ {[%clk 0:01:22]} 40... Kb7 {[%clk 0:01:03]} 41. h4 {[%clk 0:01:21.8]}
41... Bd3 {[%clk 0:01:01.9]} 42. Be3 {[%clk 0:01:22]} 42... Be2 {[%clk
0:01:02.9]} 43. Kd6 {[%clk 0:01:21.8]} 43... Bxb5 {[%clk 0:01:02.8]} 44. Ke6
{[%clk 0:01:21.1]} 44... Kc6 {[%clk 0:00:22.6]} 45. Kf7 {[%clk 0:01:20.1]} 45...
Be2 {[%clk 0:00:22.2]} 46. Kg7 {[%clk 0:01:19.9]} 46... Bh5 {[%clk 0:00:23.8]}
47. Kxh7 {[%clk 0:01:20.2]} 47... Kd5 {[%clk 0:00:25.5]} 48. Bf4 {[%clk
0:01:20.4]} 48... Ke4 {[%clk 0:00:27]} 49. Kh6 {[%clk 0:01:21]} 49... Kf3 {[%clk
0:00:24.4]} 1/2-1/2

[Event "*** Titled Tuesday Blitz"]
[Site "Chess.com"]
[Date "2018.07.03"]
[Round "3"]
[White "pulvettd"]
[Black "Dr-Bassem"]
[Result "0-1"]
[WhiteElo "2461"]
[BlackElo "2698"]
[TimeControl "180+2"]
[EndTime "13:36:14 PDT"]
[Termination "Dr-Bassem won on time"]

1. d4 {[%clk 0:02:54.8]} 1... Nf6 {[%clk 0:03:00.6]} 2. c4 {[%clk 0:02:54.3]}
2... g6 {[%clk 0:03:01.8]} 3. Nf3 {[%clk 0:02:53.9]} 3... Bg7 {[%clk 0:03:03.1]}
4. Nc3 {[%clk 0:02:55.2]} 4... O-O {[%clk 0:03:04.7]} 5. e4 {[%clk 0:02:55.5]}
5... d6 {[%clk 0:03:06.2]} 6. Be2 {[%clk 0:02:57.4]} 6... e5 {[%clk 0:03:06.4]}
7. Be3 {[%clk 0:02:58.9]} 7... Ng4 {[%clk 0:03:00.1]} 8. Bg5 {[%clk 0:02:57]}
8... f6 {[%clk 0:03:01.4]} 9. Bh4 {[%clk 0:02:57.2]} 9... g5 {[%clk 0:02:51.8]}
10. Bg3 {[%clk 0:02:57.1]} 10... Nh6 {[%clk 0:02:52.7]} 11. dxe5 {[%clk
0:02:56.7]} 11... dxe5 {[%clk 0:02:46.3]} 12. c5 {[%clk 0:02:57.3]} 12... Be6
{[%clk 0:02:36.3]} 13. Qa4 {[%clk 0:02:51.6]} 13... c6 {[%clk 0:02:25.4]} 14.
Bc4 {[%clk 0:02:51.3]} 14... Qe7 {[%clk 0:02:17.1]} 15. Rd1 {[%clk 0:02:37.1]}
15... Nf7 {[%clk 0:02:15.4]} 16. Qb3 {[%clk 0:02:13.3]} 16... Bg4 {[%clk
0:02:03.2]} 17. h4 {[%clk 0:02:08.1]} 17... Nd7 {[%clk 0:01:58.9]} 18. hxg5
{[%clk 0:01:45.2]} 18... Nxc5 {[%clk 0:01:51.1]} 19. gxf6 {[%clk 0:01:46.2]}
19... Qxf6 {[%clk 0:01:46.3]} 20. Qa3 {[%clk 0:01:31.1]} 20... Bxf3 {[%clk
0:01:41.9]} 21. gxf3 {[%clk 0:01:28.9]} 21... Qxf3 {[%clk 0:01:41.4]} 22. Rg1
{[%clk 0:00:46.9]} 22... Nxe4 {[%clk 0:01:40.4]} 23. Be2 {[%clk 0:00:46.3]}
23... Qf5 {[%clk 0:01:40.8]} 24. Bd3 {[%clk 0:00:44.5]} 24... Nfg5 {[%clk
0:01:32.8]} 25. Nxe4 {[%clk 0:00:42.3]} 25... Nf3+ {[%clk 0:01:22.5]} 26. Kf1
{[%clk 0:00:42.7]} 26... Qh3+ {[%clk 0:01:18.8]} 27. Ke2 {[%clk 0:00:43.8]}
27... Qh5 {[%clk 0:00:56.6]} 28. Rh1 {[%clk 0:00:23.7]} 28... Ng1+ {[%clk
0:00:56.5]} 29. Kd2 {[%clk 0:00:23.2]} 29... Qxh1 {[%clk 0:00:55.5]} 30. Kc1
{[%clk 0:00:21.4]} 30... Rad8 {[%clk 0:00:53.9]} 31. Qb3+ {[%clk 0:00:17.6]}
31... Kh8 {[%clk 0:00:54.2]} 32. Nc5 {[%clk 0:00:17.9]} 32... Qh6+ {[%clk
0:00:47.7]} 33. Kb1 {[%clk 0:00:16.1]} 33... Nf3 {[%clk 0:00:49.2]} 34. Ne6
{[%clk 0:00:16]} 34... Nd2+ {[%clk 0:00:50]} 35. Rxd2 {[%clk 0:00:17.4]} 35...
Qxd2 {[%clk 0:00:51.5]} 36. Nxd8 {[%clk 0:00:11.5]} 36... Rxd8 {[%clk
0:00:53.4]} 37. Bf5 {[%clk 0:00:06.1]} 37... Qe1+ {[%clk 0:00:50.3]} 38. Kc2
{[%clk 0:00:06.6]} 38... e4 {[%clk 0:00:43.1]} 0-1

[Event "*** Titled Tuesday Blitz"]
[Site "Chess.com"]
[Date "2018.07.03"]
[Round "3"]
[White "GameOverBro"]
[Black "VladimirBelous"]
[Result "1-0"]
[WhiteElo "2442"]
[BlackElo "2658"]
[TimeControl "180+2"]
[EndTime "13:36:18 PDT"]
[Termination "GameOverBro won by resignation"]

1. e4 {[%clk 0:03:01.9]} 1... c5 {[%clk 0:03:00.9]} 2. Ne2 {[%clk 0:02:57.3]}
2... Nc6 {[%clk 0:03:01.7]} 3. Nbc3 {[%clk 0:02:58.3]} 3... e6 {[%clk
0:03:01.3]} 4. d4 {[%clk 0:02:56.8]} 4... cxd4 {[%clk 0:03:03.2]} 5. Nxd4 {[%clk
0:02:58.4]} 5... Qc7 {[%clk 0:03:04.4]} 6. g3 {[%clk 0:02:58.6]} 6... a6 {[%clk
0:02:57.2]} 7. Bg2 {[%clk 0:02:59.5]} 7... Nxd4 {[%clk 0:02:56.2]} 8. Qxd4
{[%clk 0:03:00.1]} 8... Nf6 {[%clk 0:02:57.6]} 9. O-O {[%clk 0:03:00.4]} 9...
Bc5 {[%clk 0:02:58.7]} 10. Bf4 {[%clk 0:03:01.2]} 10... d6 {[%clk 0:02:52.3]}
11. Qd2 {[%clk 0:03:01.3]} 11... h6 {[%clk 0:02:51.2]} 12. Rad1 {[%clk
0:02:58.1]} 12... O-O {[%clk 0:02:44.4]} 13. Bxd6 {[%clk 0:02:53.8]} 13... Bxd6
{[%clk 0:02:45.3]} 14. Qxd6 {[%clk 0:02:55.6]} 14... Qa5 {[%clk 0:02:45.7]} 15.
e5 {[%clk 0:02:45.7]} 15... Nd7 {[%clk 0:02:35.7]} 16. Rfe1 {[%clk 0:02:43.5]}
16... Re8 {[%clk 0:02:21.4]} 17. a3 {[%clk 0:02:20.3]} 17... Nf8 {[%clk
0:02:15.6]} 18. Rd4 {[%clk 0:02:07.6]} 18... Ng6 {[%clk 0:02:10.2]} 19. f4
{[%clk 0:02:03.4]} 19... Ne7 {[%clk 0:02:09.3]} 20. g4 {[%clk 0:01:42.1]} 20...
Nc6 {[%clk 0:01:57.2]} 21. Bxc6 {[%clk 0:01:24.9]} 21... bxc6 {[%clk 0:01:55.4]}
22. Qxc6 {[%clk 0:01:25.8]} 22... Bb7 {[%clk 0:01:53.4]} 23. Qxb7 {[%clk
0:01:25.6]} 23... Qc5 {[%clk 0:01:54.9]} 24. Qb4 {[%clk 0:01:24.6]} 24... Qa7
{[%clk 0:01:54.9]} 25. Rd1 {[%clk 0:01:23.6]} 25... Rab8 {[%clk 0:01:56.2]} 26.
Qa4 {[%clk 0:01:21.9]} 26... Rec8 {[%clk 0:01:55.7]} 27. Kg2 {[%clk 0:01:05.2]}
27... Rxb2 {[%clk 0:01:55.9]} 28. Rd8+ {[%clk 0:00:56.5]} 28... Rxd8 {[%clk
0:01:56.6]} 29. Rxd8+ {[%clk 0:00:58.4]} 29... Kh7 {[%clk 0:01:58.5]} 30. Qe4+
{[%clk 0:00:59.4]} 30... g6 {[%clk 0:01:53.9]} 31. Ne2 {[%clk 0:00:47.2]} 31...
Rb7 {[%clk 0:01:29]} 32. Kf3 {[%clk 0:00:41.4]} 32... Rc7 {[%clk 0:01:27.3]} 33.
c4 {[%clk 0:00:40.5]} 33... Qb6 {[%clk 0:01:19]} 34. Kg2 {[%clk 0:00:28.4]}
34... Qb2 {[%clk 0:01:18.1]} 35. h4 {[%clk 0:00:24]} 35... Qa2 {[%clk 0:01:09]}
36. Kf2 {[%clk 0:00:21.8]} 36... Rxc4 {[%clk 0:01:08.6]} 37. Qa8 {[%clk
0:00:21.4]} 37... Rxf4+ {[%clk 0:01:09.3]} 38. Ke3 {[%clk 0:00:22.9]} 38... Qb3+
{[%clk 0:00:59.9]} 39. Kxf4 {[%clk 0:00:23.8]} 39... g5+ {[%clk 0:01:01.8]} 40.
hxg5 {[%clk 0:00:22.7]} 40... hxg5+ {[%clk 0:01:03.7]} 41. Kxg5 {[%clk
0:00:23.6]} 41... Qe3+ {[%clk 0:01:02.4]} 42. Kh4 {[%clk 0:00:23.9]} 42... Qf2+
{[%clk 0:01:01]} 43. Kh3 {[%clk 0:00:23.1]} 43... Qf1+ {[%clk 0:01:01.4]} 44.
Qg2 {[%clk 0:00:23.9]} 44... Qe1 {[%clk 0:01:02.2]} 45. Ng3 {[%clk 0:00:24.2]}
45... Qe3 {[%clk 0:01:00.9]} 46. Qe4+ {[%clk 0:00:25.6]} 1-0

[Event "*** Titled Tuesday Blitz"]
[Site "Chess.com"]
[Date "2018.07.03"]
[Round "3"]
[White "David_Paravyan"]
[Black "PaulfromSPb"]
[Result "0-1"]
[WhiteElo "2700"]
[BlackElo "2521"]
[TimeControl "180+2"]
[EndTime "13:36:19 PDT"]
[Termination "PaulfromSPb won on time"]

1. e4 {[%clk 0:02:44.7]} 1... c5 {[%clk 0:03:00.2]} 2. Nf3 {[%clk 0:02:44.8]}
2... d6 {[%clk 0:03:01.4]} 3. d4 {[%clk 0:02:45.1]} 3... cxd4 {[%clk 0:03:02.5]}
4. Nxd4 {[%clk 0:02:47]} 4... Nf6 {[%clk 0:03:03.6]} 5. Nc3 {[%clk 0:02:45.1]}
5... a6 {[%clk 0:03:04.8]} 6. g4 {[%clk 0:02:43.2]} 6... Bxg4 {[%clk 0:02:55.9]}
7. f3 {[%clk 0:02:43.5]} 7... Bd7 {[%clk 0:02:55.2]} 8. Be3 {[%clk 0:02:42.2]}
8... Nc6 {[%clk 0:02:55]} 9. Qd2 {[%clk 0:02:42.2]} 9... g6 {[%clk 0:02:49.1]}
10. O-O-O {[%clk 0:02:39]} 10... Bg7 {[%clk 0:02:49.9]} 11. Kb1 {[%clk
0:02:34.1]} 11... b5 {[%clk 0:02:36.8]} 12. h4 {[%clk 0:02:32.1]} 12... b4
{[%clk 0:02:36.2]} 13. Nd5 {[%clk 0:02:32.2]} 13... Nxd5 {[%clk 0:02:18.3]} 14.
exd5 {[%clk 0:02:34.1]} 14... Ne5 {[%clk 0:02:19.3]} 15. h5 {[%clk 0:02:34.1]}
15... Qc7 {[%clk 0:02:12.1]} 16. Be2 {[%clk 0:02:26.4]} 16... a5 {[%clk
0:02:03.1]} 17. Bh6 {[%clk 0:02:24.3]} 17... Bf6 {[%clk 0:01:58.4]} 18. Bg5
{[%clk 0:02:21.6]} 18... Bxg5 {[%clk 0:01:22]} 19. Qxg5 {[%clk 0:02:20.9]} 19...
f6 {[%clk 0:01:12.2]} 20. Qe3 {[%clk 0:02:06.7]} 20... O-O-O {[%clk 0:01:06.6]}
21. f4 {[%clk 0:02:03.2]} 21... Ng4 {[%clk 0:01:04.4]} 22. Qd3 {[%clk
0:01:45.3]} 22... Qb6 {[%clk 0:00:56.3]} 23. Rhf1 {[%clk 0:01:19.1]} 23... f5
{[%clk 0:00:43.5]} 24. Rde1 {[%clk 0:01:07.6]} 24... Rhe8 {[%clk 0:00:40.6]} 25.
Bd1 {[%clk 0:00:40]} 25... Kb7 {[%clk 0:00:39.6]} 26. Rg1 {[%clk 0:00:32.7]}
26... Rc8 {[%clk 0:00:38]} 27. Bf3 {[%clk 0:00:32.2]} 27... a4 {[%clk
0:00:37.4]} 28. Nc6 {[%clk 0:00:32.9]} 28... a3 {[%clk 0:00:37]} 29. Nxe7 {[%clk
0:00:26.1]} 29... Rc3 {[%clk 0:00:31.5]} 30. Qe2 {[%clk 0:00:14]} 30... Re3
{[%clk 0:00:29.3]} 31. Qc4 {[%clk 0:00:08.1]} 31... R8xe7 {[%clk 0:00:25.7]} 32.
Rxe3 {[%clk 0:00:08.7]} 32... Nxe3 {[%clk 0:00:23.4]} 33. Qb3 {[%clk 0:00:04.3]}
33... Nc4 {[%clk 0:00:19.7]} 34. Rd1 {[%clk 0:00:02.1]} 34... Nxb2 {[%clk
0:00:20.8]} 0-1

[Event "*** Titled Tuesday Blitz"]
[Site "Chess.com"]
[Date "2018.07.03"]
[Round "3"]
[White "MateusViageiro"]
[Black "vovachesss"]
[Result "0-1"]
[WhiteElo "2300"]
[BlackElo "2424"]
[TimeControl "180+2"]
[EndTime "13:36:20 PDT"]
[Termination "vovachesss won by checkmate"]

1. e4 {[%clk 0:03:01.4]} 1... c6 {[%clk 0:02:56.4]} 2. d4 {[%clk 0:03:01.6]}
2... d5 {[%clk 0:02:57.1]} 3. Nc3 {[%clk 0:03:01.8]} 3... dxe4 {[%clk
0:02:58.1]} 4. Nxe4 {[%clk 0:03:02.8]} 4... Nf6 {[%clk 0:03:00]} 5. Nxf6+ {[%clk
0:03:03.4]} 5... exf6 {[%clk 0:03:01.9]} 6. Nf3 {[%clk 0:03:04.3]} 6... Bd6
{[%clk 0:03:03.2]} 7. Bd3 {[%clk 0:03:05.8]} 7... O-O {[%clk 0:03:04.5]} 8. O-O
{[%clk 0:03:07.3]} 8... Re8 {[%clk 0:03:05.1]} 9. c3 {[%clk 0:03:07.8]} 9... Nd7
{[%clk 0:03:06.2]} 10. Re1 {[%clk 0:03:08]} 10... Rxe1+ {[%clk 0:03:05.7]} 11.
Qxe1 {[%clk 0:03:09.9]} 11... Nf8 {[%clk 0:03:07.4]} 12. h3 {[%clk 0:03:10.4]}
12... Ng6 {[%clk 0:03:07]} 13. Bc2 {[%clk 0:03:08.6]} 13... Be6 {[%clk
0:03:06.1]} 14. Nd2 {[%clk 0:03:09.6]} 14... Qd7 {[%clk 0:02:59.8]} 15. Ne4
{[%clk 0:03:10.3]} 15... Bf8 {[%clk 0:02:54.8]} 16. Qe2 {[%clk 0:03:10.8]} 16...
Re8 {[%clk 0:02:55.1]} 17. Qh5 {[%clk 0:03:09]} 17... Bd5 {[%clk 0:02:51.8]} 18.
f3 {[%clk 0:02:42.7]} 18... f5 {[%clk 0:02:37]} 19. Ng3 {[%clk 0:02:35]} 19...
Re1+ {[%clk 0:02:20.9]} 20. Kf2 {[%clk 0:02:32.5]} 20... Qe8 {[%clk 0:02:21.4]}
21. Qxf5 {[%clk 0:02:28.3]} 21... Bd6 {[%clk 0:02:12.8]} 22. Be4 {[%clk
0:02:25.2]} 22... Rd1 {[%clk 0:01:51.3]} 23. b3 {[%clk 0:02:11.4]} 23... Be6
{[%clk 0:01:10.8]} 24. Qh5 {[%clk 0:02:01.7]} 24... Bxg3+ {[%clk 0:00:31.3]} 25.
Kxg3 {[%clk 0:02:03.6]} 25... Qb8+ {[%clk 0:00:33.2]} 26. Kf2 {[%clk 0:02:00.4]}
26... Qh2 {[%clk 0:00:33]} 27. Qg5 {[%clk 0:01:06.8]} 27... h6 {[%clk
0:00:20.5]} 28. Qe3 {[%clk 0:00:27.7]} 28... Bxh3 {[%clk 0:00:12.9]} 29. f4
{[%clk 0:00:27.5]} 29... Qg1+ {[%clk 0:00:13.1]} 30. Kg3 {[%clk 0:00:28.4]}
30... Qh1 {[%clk 0:00:08.7]} 31. Bxg6 {[%clk 0:00:26.9]} 31... Qxg2+ {[%clk
0:00:07.9]} 32. Kh4 {[%clk 0:00:27.9]} 32... Qg4# {[%clk 0:00:09.7]} 0-1